fUST/lending_fUST_20250724
["ID","MTS","AMOUNT","RATE_DAILY","PERIOD"]
[374441520,1753302646999,-460.0,0.00019929,2]
[374441522,1753302647008,-556.64,0.00019929,2]
[374441524,1753302647017,-460.0,0.00019929,2]
[374441526,1753302647026,-460.0,0.00019929,2]
[374441528,1753302647035,-917.13,0.00019929,2]
[374441530,1753302647044,-539.13,0.00019929,2]
[374441532,1753302647053,-460.0,0.00019929,2]
[374441534,1753302647062,-460.0,0.00019929,2]
[374441536,1753302647071,-460.0,0.00019929,2]
[374441537,1753302647080,-460.0,0.00019929,2]
[374441539,1753302647089,-460.0,0.00019929,2]
[374441541,1753302647096,-460.0,0.00019929,2]
[374441543,1753302647102,-460.0,0.00019929,2]
[374441545,1753302647110,-370.96,0.00019929,2]
[374441547,1753302647118,-500.0,0.0001993,2]
[374441549,1753302647125,-151.0,0.0001993,2]
[374441551,1753302647134,-151.0,0.0001993,2]
[374441553,1753302647141,-151.0,0.0001993,2]
[374441555,1753302647149,-500.0,0.0001993,2]
[374441557,1753302647157,-682.0,0.0001993,2]
[374441559,1753302647165,-171.11865944,0.0001993,2]
[374441561,1753302647172,-151.0,0.0001993,2]
[374441563,1753302647179,-151.0,0.0001993,2]
[374441565,1753302647187,-460.0,0.0001993,2]
[374441567,1753302647195,-500.0,0.0001993,2]
[374441569,1753302647202,-323.33328266,0.0001993,2]
[374441571,1753302647210,-460.0,0.0001993,2]
[374441573,1753302647219,-460.0,0.0001993,2]
[374441575,1753302647230,-460.0,0.0001993,2]
[374441576,1753302647236,-324.52610395,0.0001993,2]
[374441578,1753302647244,-460.0,0.0001993,2]
[374441580,1753302647252,-460.0,0.0001993,2]
[374441582,1753302647261,-286.08590765,0.00019988,2]
[374441584,1753302647270,-824.88,0.00020019,3]
[374441586,1753302647280,-274.95,0.0002002,3]
[374441588,1753302647289,-385.35351005,0.00020028,2]
[374441590,1753302647298,-460.0,0.00020028,2]
[374441592,1753302647307,-460.0,0.00020028,2]
[374441594,1753302647316,-176.8182389,0.00020028,2]
[374441596,1753302647325,-460.0,0.00020028,2]
[374441598,1753302647334,-460.0,0.00020028,2]
[374441600,1753302647343,-535.96,0.00020028,2]
[374441602,1753302647351,-460.0,0.00020028,2]
[374441604,1753302647358,-460.0,0.00020028,2]
[374441605,1753302647368,-460.0,0.00020029,2]
[374441606,1753302647378,-460.0,0.00020029,2]
[374441607,1753302647387,-460.0,0.00020029,2]
[374441608,1753302647397,-237.60015769,0.0002003,2]
[374441609,1753302647406,-460.0,0.00020031,2]
[374441610,1753302647415,-460.0,0.00020031,2]
[374441611,1753302647424,-1052.07,0.00020031,2]
[374441612,1753302647433,-489.69,0.00020035,2]
[374441613,1753302647442,-473.3,0.00020035,2]
[374441615,1753302647451,-460.0,0.00020035,2]
[374441617,1753302647460,-327.23901144,0.00020114,2]
[374441619,1753302647470,-500.0,0.00020135,2]
[374441621,1753302647482,-500.0,0.00020135,2]
[374441623,1753302647491,-460.0,0.00020149,2]
[374441625,1753302647500,-500.0,0.00020178,2]
[374441627,1753302647510,-500.0,0.00020178,2]
[374441629,1753302647519,-259.875189,0.00020187,2]
[374441632,1753302647529,-609.33,0.00020202,2]
[374441633,1753302647538,-1080.06,0.00020203,2]
[374441636,1753302647548,-597.35,0.00020203,2]
[374441638,1753302647558,-556.64,0.00020203,2]
[374441639,1753302647567,-460.0,0.00020203,2]
[374441641,1753302647576,-917.13,0.00020203,2]
[374441643,1753302647586,-460.0,0.00020203,2]
[374441646,1753302647595,-460.0,0.00020203,2]
[374441648,1753302647604,-460.0,0.00020203,2]
[374441649,1753302647614,-460.0,0.00020203,2]
[374441651,1753302647623,-500.0,0.00020204,2]
[374441653,1753302647632,-151.0,0.00020204,2]
[374441655,1753302647642,-151.0,0.00020204,2]
[374441657,1753302647651,-500.0,0.00020204,2]
[374441659,1753302647661,-682.0,0.00020204,2]
[374441661,1753302647670,-151.0,0.00020204,2]
[374441663,1753302647679,-151.0,0.00020204,2]
[374441665,1753302647688,-460.0,0.00020204,2]
[374441667,1753302647697,-1000.0,0.00020221,2]
[374441669,1753302647706,-460.0,0.00020302,2]
[374441671,1753302647715,-460.0,0.00020302,2]
[374441673,1753302647728,-460.0,0.00020302,2]
[374441675,1753302647737,-460.0,0.00020303,2]
[374441677,1753302647746,-460.0,0.00020303,2]
[374441679,1753302647757,-228.60313819,0.00020303,2]
[374441681,1753302647766,-460.0,0.00020305,2]
[374441683,1753302647776,-460.0,0.00020305,2]
[374441685,1753302647785,-1052.07,0.00020305,2]
[374441687,1753302647795,-489.69,0.00020309,2]
[374441689,1753302647804,-473.3,0.00020309,2]
[374441691,1753302647814,-460.0,0.00020309,2]
[374441693,1753302647823,-487.4187902,0.00020358,2]
[374441695,1753302647834,-460.0,0.00020423,2]
[374441697,1753302647843,-152.68,0.00020476,2]
[374441699,1753302647853,-609.33,0.00020476,2]
[374441701,1753302647862,-1080.06,0.00020477,2]
[374441703,1753302647871,-597.35,0.00020477,2]
[374441705,1753302647880,-556.64,0.00020477,2]
[374441707,1753302647890,-917.13,0.00020477,2]
[374441709,1753302647900,-460.0,0.00020477,2]
[374441711,1753302647909,-460.0,0.00020477,2]
[374441713,1753302647918,-500.0,0.00020478,2]
[374441715,1753302647928,-151.0,0.00020478,2]
[374441717,1753302647937,-682.0,0.00020478,2]
[374441719,1753302647946,-245.0,0.00020478,2]
[374441721,1753302647955,-151.0,0.00020478,2]
[374441723,1753302647964,-460.0,0.00020478,2]
[374441725,1753302647977,-460.0,0.00020576,2]
[374441726,1753302647986,-460.0,0.00020576,2]
[374441727,1753302647995,-450.48047649,0.00020576,2]
[374441728,1753302648004,-460.0,0.00020577,2]
[374441729,1753302648012,-460.0,0.00020577,2]
[374441730,1753302648142,-460.0,0.00020579,2]
[374441731,1753302648152,-460.0,0.00020579,2]
[374441732,1753302648161,-1052.07,0.00020579,2]
[374441733,1753302648171,-489.69,0.00020583,2]
[374441734,1753302648180,-473.3,0.00020583,2]
[374441735,1753302648189,-460.0,0.00020583,2]
[374441736,1753302648198,-151.0,0.00020663,2]
[374441737,1753302648207,-215.0738,0.00020663,2]
[374441738,1753302648217,-151.0,0.00020663,2]
[374441739,1753302648230,-151.0,0.00020663,2]
[374441740,1753302648239,-151.0,0.00020663,2]
[374441741,1753302648248,-151.0,0.00020663,2]
[374441742,1753302648257,-151.0,0.00020663,2]
[374441743,1753302648267,-151.0,0.00020663,2]
[374441744,1753302648276,-151.0,0.00020663,2]
[374441745,1753302648285,-539.57356699,0.00020663,2]
[374441746,1753302648294,-53.60663543,0.00020663,2]
[374441747,1753302648311,-97.39336457,0.00020663,2]
[374441748,1753302648320,-151.0,0.00020663,2]
[374441749,1753302648326,-151.0,0.00020663,2]
[374441750,1753302648334,-151.0,0.00020663,2]
[374441751,1753302648341,-151.0,0.00020663,2]
[374441752,1753302648348,-151.0,0.00020663,2]
[374441753,1753302648358,-151.0,0.00020663,2]
[374441754,1753302648367,-151.0,0.00020663,2]
[374441755,1753302648377,-151.0,0.00020663,2]
[374441756,1753302648386,-151.0,0.00020663,2]
[374441757,1753302648394,-169.54312357,0.00020663,2]
[374441758,1753302648403,-215.84326551,0.00020687,2]
[374441759,1753302648412,-840.06856235,0.00020687,2]
[374441760,1753302648421,-160.0,0.00020687,2]
[374441761,1753302648430,-12622.36869388,0.00020687,2]
[374441762,1753302648439,-160.0,0.00020687,2]
[374441763,1753302648448,-460.0,0.00020697,2]
[374441764,1753302648457,-363.763,0.00020728,2]
[374441765,1753302648466,-609.33,0.0002075,2]
[374441766,1753302648479,-1080.06,0.00020751,2]
[374441767,1753302648488,-597.35,0.00020751,2]
[374441768,1753302648497,-556.64,0.00020751,2]
[374441769,1753302648505,-917.13,0.00020751,2]
[374441770,1753302648515,-460.0,0.00020751,2]
[374441771,1753302648524,-460.0,0.00020751,2]
[374441772,1753302648534,-500.0,0.00020752,2]
[374441773,1753302648544,-682.0,0.00020752,2]
[374441774,1753302648553,-460.0,0.00020752,2]
[374441775,1753302648563,-500.0,0.00020768,2]
[374441776,1753302648573,-169.47407839,0.0002085,2]
[374441777,1753302648583,-460.0,0.00020851,2]
[374441778,1753302648593,-405.73,0.00020851,2]
[374441779,1753302648603,-460.0,0.00020853,2]
[374441780,1753302648614,-1052.07,0.00020853,2]
[374441781,1753302648623,-489.69,0.00020857,2]
[374441782,1753302648633,-473.3,0.00020857,2]
[374441783,1753302648642,-460.0,0.00020857,2]
[374441784,1753302648653,-460.0,0.00020971,2]
[374441785,1753302648663,-609.33,0.00021024,2]
[374441786,1753302648673,-1080.06,0.00021025,2]
[374441787,1753302648683,-597.35,0.00021025,2]
[374441788,1753302648693,-556.64,0.00021025,2]
[374441789,1753302648702,-917.13,0.00021025,2]
[374441790,1753302648712,-575.361376,0.00021025,2]
[374441791,1753302648724,-460.0,0.00021025,2]
[374441792,1753302648733,-500.0,0.00021026,2]
[374441793,1753302648743,-682.0,0.00021026,2]
[374441794,1753302648756,-460.0,0.00021026,2]
[374441795,1753302648766,-151.0,0.0002104,2]
[374441796,1753302648775,-151.0,0.0002104,2]
[374441797,1753302648784,-151.0,0.0002104,2]
[374441798,1753302648794,-229.78124,0.0002104,2]
[374441799,1753302648804,-229.78124,0.0002104,2]
[374441800,1753302648813,-1157.665437,0.0002104,2]
[374441801,1753302648823,-1157.665437,0.0002104,2]
[374441802,1753302648834,-151.254061,0.0002105,2]
[374441803,1753302648843,-151.0,0.0002105,2]
[374441804,1753302648853,-151.0,0.0002105,2]
[374441805,1753302648862,-182.933249,0.0002105,2]
[374441806,1753302648872,-182.933249,0.0002105,2]
[374441807,1753302648882,-152.467607,0.0002105,2]
[374441808,1753302648891,-460.0,0.00021125,2]
[374441809,1753302648900,-37.20347838,0.00021127,2]
[374441810,1753302648913,-422.79652162,0.00021127,2]
[374441812,1753302648923,-1052.07,0.00021127,2]
[374441814,1753302648932,-489.69,0.00021131,2]
[374441816,1753302648942,-473.3,0.00021131,2]
[374441818,1753302648951,-460.0,0.00021131,2]
[374441820,1753302648960,-487.4187902,0.00021162,2]
[374441822,1753302648969,-609.33,0.00021298,2]
[374441824,1753302648983,-1080.06,0.00021299,2]
[374441826,1753302648992,-597.35,0.00021299,2]
[374441828,1753302649002,-556.64,0.00021299,2]
[374441830,1753302649011,-917.13,0.00021299,2]
[374441832,1753302649020,-460.0,0.00021299,2]
[374441834,1753302649031,-500.0,0.000213,2]
[374441836,1753302649040,-682.0,0.000213,2]
[374441838,1753302649049,-460.0,0.000213,2]
[374441840,1753302649059,-2640.03188684,0.00021328,2]
[374441842,1753302649068,-153.0,0.0002133,2]
[374441844,1753302649078,-153.0,0.0002133,2]
[374441846,1753302649087,-549.9,0.0002139,3]
[374441848,1753302649096,-460.0,0.00021399,2]
[374441850,1753302649106,-460.0,0.00021401,2]
[374441852,1753302649115,-1052.07,0.00021401,2]
[374441854,1753302649125,-489.69,0.00021405,2]
[374441856,1753302649134,-473.3,0.00021405,2]
[374441858,1753302649143,-460.0,0.00021405,2]
[374441860,1753302649152,-420.0,0.00021408,2]
[374441862,1753302649162,-387.0,0.00021408,2]
[374441864,1753302649170,-223.0,0.00021408,2]
[374441866,1753302649179,-150.0,0.00021424,2]
[374441868,1753302649188,-500.0,0.00021442,2]
[374441870,1753302649198,-800.0,0.00021516,2]
[374441872,1753302649207,-609.33,0.00021572,2]
[374441874,1753302649216,-1080.06,0.00021573,2]
[374441876,1753302649229,-597.35,0.00021573,2]
[374441878,1753302649238,-556.64,0.00021573,2]
[374441880,1753302649247,-917.13,0.00021573,2]
[374441882,1753302649255,-460.0,0.00021573,2]
[374441884,1753302649265,-500.0,0.00021574,2]
[374441886,1753302649273,-682.0,0.00021574,2]
[374441887,1753302649282,-460.0,0.00021574,2]
[374441890,1753302649292,-671.31988695,0.00021579,2]
[374441891,1753302649301,-506.9,0.00021608,5]
[374441894,1753302649311,-160.0,0.00021644,2]
[374441895,1753302649320,-460.0,0.00021673,2]
[374441897,1753302649330,-460.0,0.00021675,2]
[374441899,1753302649340,-1052.07,0.00021675,2]
[374441902,1753302649350,-151.0,0.00021677,2]
[374441903,1753302649359,-151.0,0.00021677,2]
[374441906,1753302649370,-151.0,0.00021677,2]
[374441908,1753302649380,-198.0,0.00021677,2]
[374441910,1753302649390,-489.69,0.00021679,2]
[374441911,1753302649399,-473.3,0.00021679,2]
[374441913,1753302649409,-460.0,0.00021679,2]
[374441915,1753302649418,-609.33,0.00021846,2]
[374441917,1753302649427,-1080.06,0.00021847,2]
[374441919,1753302649437,-597.35,0.00021847,2]
[374441921,1753302649446,-556.64,0.00021847,2]
[374441923,1753302649456,-917.13,0.00021847,2]
[374441925,1753302649466,-460.0,0.00021847,2]
[374441927,1753302649481,-302.0,0.00021848,2]
[374441929,1753302649490,-682.0,0.00021848,2]
[374441931,1753302649499,-460.0,0.00021848,2]
[374441933,1753302649508,-152.68,0.00021876,2]
[374441935,1753302649518,-506.9,0.00021916,5]
[374441937,1753302649527,-460.0,0.00021947,2]
[374441939,1753302649536,-460.0,0.00021949,2]
[374441941,1753302649545,-1052.07,0.00021949,2]
[374441943,1753302649555,-151.0,0.00021951,2]
[374441945,1753302649564,-489.69,0.00021953,2]
[374441947,1753302649573,-473.3,0.00021953,2]
[374441949,1753302649583,-345.69705501,0.00021953,2]
[374441952,1753302649601,-151.0,0.0001993,2]
[374441954,1753302649611,-114.30294499,0.00021953,2]
[374441956,1753302649620,-487.4187902,0.00021965,2]
[374441958,1753302649630,-97.27206122,0.00021969,2]
[374443456,1753303103859,150.0,0.00021631,30]
[374443459,1753303318955,24197.15,0.00026027,120]
[374443461,1753303396355,150.0,0.00021894,30]
[374443462,1753303406847,266.799769,0.00013699,2]
[374443464,1753303541114,-464.33128167,0.00018986,2]
[374443465,1753303541135,-1640.83020156,0.00019178,2]
[374443466,1753303557090,-1647.68140567,0.00019178,2]
[374443467,1753303629098,-817.68115778,0.00019178,2]
[374443468,1753303641093,-166.7526901,0.00019178,2]
[374443517,1753303832436,-727.05454489,0.00019178,2]
[374443520,1753303832446,-666.0,0.00019178,2]
[374443523,1753303832455,-278.610205,0.00019178,2]
[374443526,1753303832465,-615.44285594,0.00019554,2]
[374443534,1753303832496,-584.55714406,0.00019554,2]
[374443538,1753303832505,-391.0,0.00019555,2]
[374443543,1753303832515,-300.0,0.00019555,2]
[374443547,1753303832525,-284.69285604,0.00019556,2]
[374443551,1753303832537,-1500.0,0.00019556,2]
[374443555,1753303832550,-4883.74736216,0.00019556,2]
[374443560,1753303832565,-180.55529247,0.00019642,2]
[374443564,1753303832575,-540.31139142,0.0001965,2]
[374443569,1753303832585,-460.0,0.0001965,2]
[374443573,1753303832594,-460.0,0.0001965,2]
[374443577,1753303832604,-28359.14358507,0.00019651,2]
[374443579,1753303832614,-460.0,0.00019651,2]
[374443583,1753303832627,-460.0,0.00019651,2]
[374443587,1753303832637,-460.0,0.00019651,2]
[374443590,1753303832647,-460.0,0.00019651,2]
[374443593,1753303832657,-460.0,0.00019651,2]
[374443595,1753303832667,-460.0,0.00019651,2]
[374443598,1753303832677,-460.0,0.00019651,2]
[374443600,1753303832687,-460.0,0.00019651,2]
[374443603,1753303832697,-460.0,0.00019651,2]
[374443605,1753303832707,-668.33,0.00019651,2]
[374443608,1753303832717,-460.0,0.00019651,2]
[374443610,1753303832726,-500.0,0.00019651,2]
[374443613,1753303832736,-500.0,0.00019651,2]
[374443616,1753303832745,-500.0,0.00019651,2]
[374443618,1753303832754,-550.95935274,0.00019651,2]
[374443621,1753303832764,-500.0,0.00019651,2]
[374443623,1753303832774,-500.0,0.00019651,2]
[374443626,1753303832783,-471.33067806,0.00019651,2]
[374443629,1753303832794,-500.0,0.00019651,2]
[374443631,1753303832804,-500.0,0.00019651,2]
[374443634,1753303832815,-500.0,0.00019651,2]
[374443637,1753303832825,-500.0,0.00019651,2]
[374443639,1753303832834,-500.0,0.00019651,2]
[374443642,1753303832844,-460.0,0.00019652,2]
[374443644,1753303832854,-460.0,0.00019652,2]
[374443647,1753303832864,-460.0,0.00019652,2]
[374443649,1753303832873,-460.0,0.00019652,2]
[374443651,1753303832883,-193.46010541,0.00019652,2]
[374443654,1753303832895,-266.53989459,0.00019652,2]
[374443656,1753303832904,-460.0,0.00019652,2]
[374443658,1753303832914,-777.33,0.00019652,2]
[374443660,1753303832925,-460.0,0.00019652,2]
[374443662,1753303832935,-460.0,0.00019652,2]
[374443664,1753303832944,-460.0,0.00019652,2]
[374443666,1753303832953,-396.39423654,0.00019652,2]
[374443668,1753303832963,-341.62659241,0.00019652,2]
[374443670,1753303832972,-724.9205915,0.00019652,2]
[374443672,1753303832984,-154.6394085,0.00019652,2]
[374443674,1753303832994,-460.0,0.00019652,2]
[374443676,1753303833004,-49.6151588,0.00019652,2]
[374443678,1753303833016,-410.3848412,0.00019652,2]
[374443680,1753303833025,-460.0,0.00019652,2]
[374443682,1753303833035,-586.53,0.00019652,2]
[374443684,1753303833046,-460.0,0.00019652,2]
[374443686,1753303833056,-460.0,0.00019652,2]
[374443688,1753303833066,-460.0,0.00019652,2]
[374443689,1753303833076,-460.0,0.00019652,2]
[374443691,1753303833085,-460.0,0.00019652,2]
[374443693,1753303833095,-460.0,0.00019652,2]
[374443695,1753303833108,-1878.19,0.00019652,2]
[374443697,1753303833118,-460.0,0.00019652,2]
[374443699,1753303833127,-500.0,0.00019652,2]
[374443701,1753303833136,-460.0,0.00019653,2]
[374443703,1753303833147,-217.96856353,0.00019653,2]
[374443706,1753303833159,-242.03143647,0.00019653,2]
[374443708,1753303833172,-471.7923692,0.00019653,2]
[374443710,1753303833183,-460.0,0.00019653,2]
[374443711,1753303833194,-460.0,0.00019653,2]
[374443714,1753303833203,-303.23386406,0.00019653,2]
[374444345,1753303840053,-888.02537271,0.00019554,2]
[374444348,1753303840065,-1705.84363234,0.00019554,2]
[374444359,1753303840116,-2330.72843265,0.00019554,2]
[374444363,1753303840127,-462.515536,0.00019554,2]
[374444367,1753303840139,-3596.19082139,0.00019554,2]
[374444371,1753303840150,-4557.97528215,0.00019554,2]
[374444376,1753303840161,-931.403917,0.00019554,2]
[374444380,1753303840177,-1337.33769663,0.00019554,2]
[374444392,1753303840234,-53255.43248922,0.00019554,2]
[374444394,1753303840244,-460.0,0.0001965,2]
[374444396,1753303840253,-274.59229756,0.0001965,2]
[374444398,1753303840262,-500.0,0.0001965,2]
[374444400,1753303840272,-531.2337587,0.0001965,2]
[374444402,1753303840281,-500.0,0.0001965,2]
[374444404,1753303840290,-500.0,0.0001965,2]
[374444406,1753303840300,-394.55103919,0.0001965,2]
[374444408,1753303840308,-500.0,0.0001965,2]
[374444410,1753303840317,-416.65341832,0.0001965,2]
[374444411,1753303840326,-563.77748737,0.0001965,2]
[374444413,1753303840335,-500.0,0.0001965,2]
[374444415,1753303840345,-500.0,0.0001965,2]
[374444417,1753303840354,-500.0,0.0001965,2]
[374444419,1753303840363,-500.0,0.0001965,2]
[374444421,1753303840373,-500.0,0.0001965,2]
[374444423,1753303840382,-500.0,0.0001965,2]
[374444425,1753303840391,-500.0,0.0001965,2]
[374444427,1753303840400,-500.0,0.0001965,2]
[374444429,1753303840409,-500.0,0.0001965,2]
[374444431,1753303840419,-500.0,0.0001965,2]
[374444433,1753303840431,-500.0,0.0001965,2]
[374444435,1753303840442,-500.0,0.0001965,2]
[374444437,1753303840451,-500.0,0.0001965,2]
[374444439,1753303840460,-500.0,0.0001965,2]
[374444441,1753303840469,-500.0,0.0001965,2]
[374444443,1753303840479,-500.0,0.0001965,2]
[374444445,1753303840488,-500.0,0.0001965,2]
[374444447,1753303840498,-500.0,0.0001965,2]
[374444449,1753303840508,-500.0,0.0001965,2]
[374444451,1753303840518,-500.0,0.0001965,2]
[374444453,1753303840527,-205.50976784,0.0001965,2]
[374444455,1753303840536,-500.0,0.0001965,2]
[374444457,1753303840545,-500.0,0.0001965,2]
[374444459,1753303840554,-460.0,0.00019652,2]
[374444461,1753303840563,-156.76613594,0.00019653,2]
[374444463,1753303840572,-460.0,0.00019653,2]
[374444465,1753303840581,-460.0,0.00019653,2]
[374444467,1753303840590,-460.0,0.00019653,2]
[374444469,1753303840599,-460.0,0.00019653,2]
[374444471,1753303840608,-462.14548734,0.00019653,2]
[374444473,1753303840617,-460.0,0.00019653,2]
[374444475,1753303840626,-460.0,0.00019653,2]
[374444476,1753303840635,-460.0,0.00019653,2]
[374444478,1753303840644,-460.0,0.00019653,2]
[374444480,1753303840653,-462.30863829,0.00019653,2]
[374444483,1753303840662,-472.98111678,0.00019653,2]
[374444485,1753303840675,-386.54041967,0.00019653,2]
[374444486,1753303840685,-469.26217849,0.00019653,2]
[374444489,1753303840695,-460.0,0.00019653,2]
[374444490,1753303840706,-460.0,0.00019653,2]
[374444492,1753303840715,-460.0,0.00019653,2]
[374444494,1753303840724,-460.0,0.00019653,2]
[374444496,1753303840733,-460.0,0.00019653,2]
[374444498,1753303840743,-500.0,0.00019653,2]
[374444501,1753303840754,-460.0,0.00019653,2]
[374444503,1753303840764,-460.0,0.00019653,2]
[374444505,1753303840774,-460.0,0.00019653,2]
[374444507,1753303840783,-460.0,0.00019653,2]
[374444508,1753303840792,-1010.62,0.00019653,2]
[374444510,1753303840802,-460.0,0.00019653,2]
[374444512,1753303840811,-460.0,0.00019653,2]
[374444514,1753303840820,-460.0,0.00019653,2]
[374444515,1753303840830,-460.0,0.00019653,2]
[374444516,1753303840839,-460.0,0.00019653,2]
[374444517,1753303840849,-460.0,0.00019653,2]
[374444519,1753303840860,-460.0,0.00019653,2]
[374444521,1753303840869,-460.0,0.00019653,2]
[374444524,1753303840879,-460.0,0.00019653,2]
[374444527,1753303840889,-460.0,0.00019653,2]
[374444531,1753303840899,-460.0,0.00019653,2]
[374444534,1753303840908,-460.0,0.00019653,2]
[374444536,1753303840918,-460.0,0.00019653,2]
[374444539,1753303840929,-460.0,0.00019653,2]
[374444542,1753303840938,-460.0,0.00019653,2]
[374444545,1753303840948,-290.46359959,0.00019653,2]
[374444548,1753303840957,-460.0,0.00019653,2]
[374444580,1753303841107,-460.0,0.00019653,2]
[374444583,1753303841117,-460.0,0.00019653,2]
[374444586,1753303841127,-460.0,0.00019653,2]
[374444589,1753303841136,-460.0,0.00019653,2]
[374444592,1753303841147,-460.0,0.00019653,2]
[374444595,1753303841156,-460.0,0.00019653,2]
[374444598,1753303841166,-460.0,0.00019653,2]
[374444601,1753303841181,-460.0,0.00019653,2]
[374444603,1753303841190,-460.0,0.00019653,2]
[374444607,1753303841200,-460.0,0.00019653,2]
[374444610,1753303841209,-256.58209565,0.00019654,2]
[374444612,1753303841219,-460.0,0.00019654,2]
[374444615,1753303841228,-460.0,0.00019654,2]
[374444618,1753303841240,-460.0,0.00019654,2]
[374444621,1753303841249,-460.0,0.00019654,2]
[374444624,1753303841259,-460.0,0.00019654,2]
[374444627,1753303841268,-460.0,0.00019654,2]
[374444631,1753303841278,-460.0,0.00019654,2]
[374444634,1753303841288,-460.0,0.00019654,2]
[374444637,1753303841298,-460.0,0.00019654,2]
[374444640,1753303841308,-461.09084379,0.00019654,2]
[374444643,1753303841318,-290.28139633,0.00019654,2]
[374444646,1753303841327,-462.37299387,0.00019654,2]
[374444648,1753303841336,-460.0,0.00019654,2]
[374444651,1753303841345,-460.0,0.00019654,2]
[374444654,1753303841355,-460.0,0.00019654,2]
[374444657,1753303841365,-460.0,0.00019654,2]
[374444659,1753303841374,-460.0,0.00019654,2]
[374444662,1753303841384,-460.0,0.00019654,2]
[374444665,1753303841393,-460.0,0.00019654,2]
[374444669,1753303841403,-460.0,0.00019654,2]
[374444671,1753303841412,-460.0,0.00019654,2]
[374444674,1753303841425,-460.0,0.00019654,2]
[374444677,1753303841434,-460.0,0.00019654,2]
[374444680,1753303841443,-460.0,0.00019654,2]
[374444683,1753303841453,-460.0,0.00019654,2]
[374444686,1753303841462,-460.0,0.00019654,2]
[374444689,1753303841471,-460.0,0.00019654,2]
[374444692,1753303841480,-460.0,0.00019654,2]
[374444695,1753303841490,-460.0,0.00019654,2]
[374444698,1753303841500,-460.0,0.00019654,2]
[374444701,1753303841509,-220.67,0.00019654,2]
[374444704,1753303841518,-460.0,0.00019654,2]
[374444706,1753303841528,-460.0,0.00019654,2]
[374444709,1753303841537,-460.0,0.00019654,2]
[374444712,1753303841547,-460.0,0.00019654,2]
[374444715,1753303841556,-460.0,0.00019654,2]
[374444718,1753303841565,-460.0,0.00019654,2]
[374444721,1753303841575,-460.0,0.00019654,2]
[374444724,1753303841585,-460.0,0.00019654,2]
[374444727,1753303841594,-460.0,0.00019654,2]
[374444730,1753303841604,-460.0,0.00019654,2]
[374444733,1753303841613,-460.0,0.00019654,2]
[374444736,1753303841623,-460.0,0.00019654,2]
[374444739,1753303841632,-460.0,0.00019654,2]
[374444741,1753303841642,-461.21925165,0.00019654,2]
[374444743,1753303841651,-460.0,0.00019654,2]
[374444745,1753303841660,-460.0,0.00019654,2]
[374444748,1753303841670,-460.0,0.00019654,2]
[374444751,1753303841681,-460.0,0.00019654,2]
[374444754,1753303841691,-460.0,0.00019654,2]
[374444756,1753303841700,-460.0,0.00019654,2]
[374444759,1753303841710,-460.0,0.00019654,2]
[374444762,1753303841720,-504.54599321,0.00019654,2]